fUST/lending_fUST_20241030
["ID","MTS","AMOUNT","RATE_DAILY","PERIOD"]
[341012306,1730240870536,500.0,0.00024973,2]
[341012307,1730240871647,531.39566657,0.00024939,2]
[341012308,1730240871764,500.0,0.00024973,2]
[341012309,1730240872632,157.141633,0.0002191,2]
[341012313,1730240887860,-186.352451,0.00024072,2]
[341012314,1730240887889,-3000.0,0.0002501,2]
[341012315,1730240887918,-3000.0,0.0002502,2]
[341012316,1730240887947,-3000.0,0.0002503,2]
[341012317,1730240887974,-300.0,0.00025039,2]
[341012318,1730240888002,-300.0,0.00025039,2]
[341012319,1730240888189,-3000.0,0.0002504,2]
[341012320,1730240888220,-3000.0,0.0002505,2]
[341012321,1730240888255,-3000.0,0.0002506,2]
[341012322,1730240888284,-3000.0,0.0002507,2]
[341012323,1730240888313,-3000.0,0.0002508,2]
[341012324,1730240888341,-3000.0,0.0002509,2]
[341012325,1730240888369,-3000.0,0.000251,2]
[341012326,1730240888399,-3000.0,0.0002511,2]
[341012327,1730240888427,-3000.0,0.0002512,2]
[341012328,1730240888456,-3000.0,0.0002513,2]
[341012329,1730240888485,-4350.974582,0.0002514,2]
[341012330,1730240888516,-164.239639,0.00025156,2]
[341012331,1730240888547,-2917.0,0.0002517,2]
[341012332,1730240888576,-456.05,0.000252,14]
[341012333,1730240888608,-850.69,0.00025205,3]
[341012334,1730240888637,-260.475,0.0002534,2]
[341012335,1730240888666,-850.69,0.00025479,3]
[341012336,1730240888693,-500.636,0.00025566,2]
[341012337,1730240888721,-3208.758,0.00025566,2]
[341012338,1730240888752,-850.69,0.00025753,3]
[341012339,1730240888782,-2190.37,0.000259,14]
[341012340,1730240888923,500.0,0.00024973,2]
[341012341,1730240901167,-500.0,0.00021973,2]
[341012342,1730240901197,-850.69,0.00026027,3]
[341012343,1730240901226,-850.69,0.00026301,3]
[341012344,1730240901255,-850.69,0.00026575,3]
[341012345,1730240901284,-850.69,0.00026849,3]
[341012346,1730240901311,-500.0,0.00027,30]
[341012347,1730240901338,-500.0,0.00027,30]
[341012348,1730240901365,-500.0,0.00027,30]
[341012349,1730240901391,-500.0,0.00027,30]
[341012350,1730240901417,-500.0,0.00027,30]
[341012351,1730240901443,-500.0,0.00027,30]
[341012352,1730240901470,-500.0,0.00027,30]
[341012353,1730240901497,-500.0,0.00027,30]
[341012354,1730240901529,-500.0,0.00027,30]
[341012355,1730240901555,-500.0,0.00027,30]
[341012356,1730240901580,-500.0,0.00027,30]
[341012357,1730240901606,-500.0,0.00027,30]
[341012358,1730240901637,-500.0,0.00027,30]
[341012359,1730240901666,-500.0,0.00027,30]
[341012360,1730240901696,-500.0,0.00027,30]
[341012361,1730240901724,-500.0,0.00027,30]
[341012362,1730240901752,-500.0,0.00027,30]
[341012363,1730240901780,-500.0,0.00027,30]
[341012364,1730240901808,-500.0,0.00027,30]
[341012365,1730240901837,-500.0,0.00027,30]
[341012366,1730240901864,-500.0,0.00027,30]
[341012367,1730240901891,-539.73,0.00027,14]
[341012368,1730240914747,-500.0,0.00021917,3]
[341012369,1730240914775,-512.83071461,0.00022191,3]
[341012370,1730240914806,-850.69,0.00027123,3]
[341012371,1730240914833,-420.0,0.00027124,2]
[341012372,1730240914860,-500.0,0.00027279,2]
[341012373,1730240914888,-528.0,0.00027338,2]
[341012374,1730240914916,-2395.0,0.00027338,2]
[341012375,1730240914943,-1145.0,0.00027338,2]
[341012376,1730240914974,-850.69,0.00027397,3]
[341012377,1730240915001,-2689.46,0.000274,30]
[341012378,1730240915028,-1000.0,0.00027452,5]
[341012379,1730240915055,-1000.0,0.00027452,5]
[341012380,1730240915082,-1000.0,0.00027452,2]
[341012381,1730240915109,-1000.0,0.00027452,5]
[341012382,1730240915136,-1000.0,0.00027452,5]
[341012383,1730240915164,-420.0,0.00027543,2]
[341012384,1730240915325,-1000.0,0.00027552,5]
[341012385,1730240915354,-456.05,0.000276,14]
[341012386,1730240915381,-252.53037582,0.00027652,5]
[341012387,1730240915410,-850.69,0.00027671,3]
[341012388,1730240915437,-850.69,0.00027945,3]
[341012389,1730240915465,-204.0,0.0002798,18]
[341012390,1730240923083,7261.01082657,0.00022,30]
[341012391,1730240924360,1769.80293167,0.0002201,16]
[341012392,1730240930367,-2500.0,0.00024658,3]
[341012393,1730240930394,-283.451,0.00028052,18]
[341012394,1730240930423,-2190.37,0.000282,30]
[341012395,1730240930456,-850.8,0.00028219,3]
[341012396,1730240930484,-150.06722,0.000286,2]
[341012397,1730240930514,-587.0,0.00029384,2]
[341012398,1730240930541,-1000.0,0.00029503,5]
[341012399,1730240930573,-153.84384808,0.00029999,2]
[341012400,1730240930600,-500.0,0.00029999,2]
[341012401,1730240930633,-500.0,0.00029999,2]
[341012402,1730240930663,-478.27106054,0.00029999,2]
[341012403,1730240930693,-636.02687664,0.00029999,2]
[341012404,1730240930720,-227.93754649,0.00029999,2]
[341012405,1730240930746,-168.02549825,0.00029999,2]
[341012406,1730240930774,-500.0,0.00029999,2]
[341012407,1730240930802,-500.0,0.00029999,2]
[341012408,1730240930832,-500.0,0.00029999,2]
[341012409,1730240930859,-573.41976774,0.00029999,2]
[341012410,1730240930886,-350.0,0.00029999,2]
[341012411,1730240930913,-294.80855103,0.00029999,2]
[341012412,1730240930942,-500.0,0.00029999,2]
[341012413,1730240930974,-454.9907835,0.00029999,2]
[341012414,1730240931001,-948.21232926,0.0003,120]
[341012415,1730240931028,-2016.06569333,0.0003,30]
[341012416,1730240931057,-539.73,0.0003,14]
[341012417,1730240931084,-1212.30305758,0.0003,3]
[341012418,1730240931111,-303.0848583,0.0003,2]
[341012419,1730240931137,-264.0,0.0003,2]
[341012420,1730240931165,-303.07879564,0.0003,2]
[341012469,1730241032593,-500.0,0.00021917,3]
[341012471,1730241032602,-500.0,0.00022191,3]
[341012473,1730241032612,-165.0,0.00025,2]
[341012475,1730241032622,-165.0,0.0002589,2]
[341012477,1730241032634,-391.21502006,0.00027397,30]
[341012482,1730241032675,-608.78497994,0.00027397,30]
[341012484,1730241032685,-1055.12594807,0.00027397,30]
[341012486,1730241032694,-245.9905,0.0002985,2]
[341012488,1730241032703,-500.0,0.00029973,2]
[341012490,1730241032714,-500.0,0.00030019,2]
[341012492,1730241032724,-400.0,0.0003015,2]
[341012494,1730241032733,-400.0,0.00030151,2]
[341012496,1730241032743,-260.454,0.0003017,2]
[341012498,1730241032752,-285.98791847,0.000303,2]
[341012499,1730241032762,-260.528,0.0003039,120]
[341012500,1730241032771,-500.95081306,0.00030452,5]
[341012502,1730241032780,-87.90815007,0.00030536,2]
[341012518,1730241038877,-65.09184993,0.00030536,2]
[341012519,1730241038894,-153.0,0.00030536,2]
[341012520,1730241038909,-153.0,0.00030536,2]
[341012521,1730241038918,-153.0,0.00030536,2]
[341012522,1730241038927,-153.0,0.00030536,2]
[341012523,1730241038937,-153.0,0.00030536,2]
[341012524,1730241038948,-153.0,0.00030536,2]
[341012525,1730241038958,-153.0,0.00030536,2]
[341012527,1730241038967,-500.0,0.0003095,5]
[341012528,1730241038978,-4989.7901216,0.00031,15]
[341012529,1730241038988,-242.0,0.000311,2]
[341012530,1730241039008,-1657.95899597,0.000311,2]
[341012531,1730241039019,-1999.41,0.000314,2]
[341012532,1730241039029,-153.0,0.00031494,2]
[341012533,1730241039039,-153.0,0.00031494,2]
[341012534,1730241039049,-153.0,0.00031494,2]
[341012535,1730241039060,-306.0,0.00031557,2]
[341012536,1730241039069,-500.0,0.00031716,7]
[341012537,1730241039079,-1212.30305758,0.000318,3]
[341012538,1730241039089,-256.87182301,0.0003211,2]
[341012539,1730241039100,-306.0,0.00032179,2]
[341012540,1730241039110,-560.0,0.0003249,2]
[341012541,1730241039121,-217.22119817,0.00032499,2]
[341012542,1730241039132,-2475.196,0.000325,120]
[341012543,1730241039142,-2475.197,0.000325,120]
[341012544,1730241039152,-2475.197,0.000325,120]
[341012545,1730241039163,-2475.196,0.000325,120]
[341012546,1730241039173,-2475.197,0.000325,120]
[341012547,1730241039184,-500.0,0.000325,5]
[341012548,1730241039193,-500.0,0.000325,5]
[341012549,1730241039203,-167.0,0.00032622,2]
[341012550,1730241039215,-1657.9589959,0.00032643,2]
[341012551,1730241039225,-150.112233,0.000327,17]
[341012552,1730241039236,-500.0,0.00032758,2]
[341012553,1730241039247,-153.0,0.00032791,2]
[341012554,1730241039257,-153.0,0.00032791,2]
[341012555,1730241039267,-150.5,0.0003285,120]
[341012556,1730241039278,-150.5,0.0003285,120]
[341012557,1730241039288,-150.5,0.0003286,120]
[341012558,1730241039299,-150.5,0.0003286,120]
[341012559,1730241039311,-150.5,0.0003287,120]
[341012560,1730241039321,-150.5,0.0003287,120]
[341012561,1730241039332,-485.2103545,0.0003287,7]
[341012562,1730241039342,-1519.66284929,0.00032876,2]
[341012563,1730241039352,-151.0,0.00032876,7]
[341012564,1730241039362,-999.0,0.00032876,120]
[341012565,1730241039371,-500.0,0.00032876,2]
[341012566,1730241039391,-1676.086079,0.00032877,120]
[341012567,1730241039401,-250.459,0.00032887,2]
[341012568,1730241039410,-313.734833,0.00033001,2]
[341012569,1730241039421,-151.0,0.0003314,7]
[341012570,1730241039431,-560.0,0.00033166,2]
[341012571,1730241039441,-260.515,0.0003328,120]
[341012572,1730241039451,-153.0,0.00033339,2]
[341012573,1730241039460,-153.0,0.00033339,2]
[341012574,1730241039470,-153.0,0.00033339,2]
[341012575,1730241039480,-500.0,0.00033345,2]
[341012576,1730241039490,-500.0,0.0003336,60]
[341012577,1730241039500,-1008.59494004,0.0003357,2]
[341012578,1730241039510,-1212.30305758,0.000336,3]
[341012579,1730241039520,-278.39312557,0.0003369,10]
[341012580,1730241039530,-500.0,0.0003369,10]
[341012581,1730241039541,-500.0,0.0003369,10]
[341012582,1730241039551,-500.0,0.0003369,10]
[341012583,1730241039561,-500.0,0.0003369,10]
[341012584,1730241039571,-500.0,0.0003369,10]
[341012585,1730241039581,-500.0,0.0003369,10]
[341012586,1730241039591,-500.0,0.0003369,10]
[341012587,1730241039601,-549.53238741,0.0003369,10]
[341012588,1730241039615,-500.0,0.0003369,10]
[341012589,1730241039628,-500.0,0.0003369,10]
[341012590,1730241039642,-499.3,0.0003369,10]
[341012591,1730241039654,-500.0,0.0003369,10]
[341012592,1730241039664,-500.0,0.0003369,10]
[341012593,1730241039674,-500.0,0.0003369,10]
[341012594,1730241039685,-500.0,0.0003369,10]
[341012595,1730241039694,-154.74467229,0.0003369,10]
[341012596,1730241039705,-162.73559639,0.0003369,10]
[341012597,1730241039715,-502.29579654,0.0003369,10]
[341012598,1730241039725,-500.0,0.0003369,10]
[341012599,1730241039735,-505.07303422,0.0003369,10]
[341012600,1730241039745,-500.0,0.0003369,10]
[341012601,1730241039754,-500.0,0.0003369,10]
[341012602,1730241039764,-500.0,0.0003369,10]
[341012603,1730241039773,-500.0,0.0003369,10]
[341012604,1730241039783,-500.0,0.0003369,10]
[341012605,1730241039793,-500.0,0.0003369,10]
[341012606,1730241039803,-500.0,0.0003369,10]
[341012607,1730241039812,-500.0,0.0003369,10]
[341012608,1730241039822,-610.29,0.0003369,10]
[341012609,1730241039832,-500.0,0.0003369,10]
[341012610,1730241039842,-500.0,0.0003369,10]
[341012611,1730241039853,-500.0,0.0003369,10]
[341012612,1730241039863,-500.0,0.0003369,10]
[341012613,1730241039873,-945.04262663,0.0003369,10]
[341012614,1730241039885,-499.3,0.0003369,10]
[341012615,1730241039895,-306.81041002,0.00033813,7]
[341012616,1730241039905,-48824.33,0.00033834,10]
[341012617,1730241039915,-999.0,0.00033835,120]
[341012618,1730241039924,-151.0,0.00033843,2]
[341012619,1730241039934,-151.0,0.00033843,2]
[341012620,1730241039945,-151.0,0.00033843,2]
[341012621,1730241039955,-151.0,0.00033843,2]
[341012622,1730241039965,-151.0,0.00033843,2]
[341012623,1730241039975,-151.0,0.00033843,2]
[341012624,1730241039986,-151.0,0.00033843,2]
[341012625,1730241039996,-151.0,0.00033843,2]
[341012626,1730241040150,-146897.20869952,0.00033844,2]
[341012627,1730241040165,-50762.40722448,0.00033844,2]
[341012628,1730241040175,-151.0,0.00033844,14]
[341012629,1730241040184,-167.937896,0.00033844,14]
[341012630,1730241040194,-500.0,0.00033845,2]
[341012631,1730241040204,-152.17662963,0.00033883,6]
[341012632,1730241040213,-150.112237,0.000339,11]
[341012633,1730241040222,-242.785451,0.00033918,2]
[341012634,1730241040232,-1000.0,0.00033953,2]
[341012635,1730241040241,-5047.25112762,0.00034,30]
[341012637,1730241040251,-151.0,0.00034014,7]
[341012638,1730241040261,-1000.0,0.00034093,2]
[341012640,1730241040271,-242.0,0.000341,2]
[341012642,1730241040280,-242.0,0.000341,2]
[341012643,1730241040290,-500.0,0.00034109,120]
[341012644,1730241040301,-500.0,0.00034109,120]
[341012645,1730241040310,-500.0,0.00034109,120]
[341012646,1730241040323,-580.61,0.00034109,120]
[341012647,1730241040333,-500.0,0.00034113,120]
[341012648,1730241040342,-500.0,0.00034113,120]
[341012650,1730241040352,-500.0,0.00034113,120]
[341012651,1730241040362,-500.0,0.00034113,120]
[341012652,1730241040371,-500.0,0.00034113,120]
[341012653,1730241040382,-500.0,0.00034113,120]
[341012654,1730241040392,-174.26,0.0003418,120]
[341012655,1730241040402,-1657.9589959,0.00034186,2]
[341012656,1730241040412,-174.29,0.0003419,120]
[341012657,1730241040422,-150.5,0.0003419,120]
[341012658,1730241040432,-2538.67924428,0.00034191,4]
[341012660,1730241040441,-1000.0,0.00034203,2]
[341012661,1730241040451,-200.0,0.00034217,14]
[341012663,1730241040461,-200.0,0.00034217,2]
[341012665,1730241040470,-319.19,0.00034217,2]
[341012666,1730241040480,-618.95397086,0.00034217,60]
[341012667,1730241040490,-954.53446988,0.00034217,32]
[341012668,1730241040500,-8037.2205687,0.00034217,30]
[341012669,1730241040509,-449.43066472,0.00034217,120]
[341012670,1730241040520,-634.03381995,0.00034217,60]
[341012671,1730241040529,-774.57826387,0.00034217,120]
[341012673,1730241040539,-348.28371966,0.00034217,30]
[341012674,1730241040549,-3511.60351628,0.00034217,7]
[341012675,1730241040558,-503.05400761,0.00034217,120]
[341012676,1730241040568,-2776.0022704,0.00034217,120]
[341012677,1730241040578,-2086.00499265,0.00034217,120]
[341012678,1730241040587,-2300.34288195,0.00034217,120]
[341012679,1730241040597,-363.95479162,0.00034217,120]
[341012680,1730241040606,-457630.47448307,0.00034217,20]
[341012681,1730241040956,-4539.91481714,0.00034217,20]
[341012688,1730241053724,-695199.68536089,0.00034217,20]
[341012689,1730241053733,-270.42758905,0.00034217,120]
[341012690,1730241053742,-1377.68349891,0.00034217,120]
[341012691,1730241053751,-340000.0,0.00034217,30]
[341012692,1730241053761,-10454.12016604,0.00034217,30]
[341012693,1730241053770,-1000.0,0.00034217,2]
[341012694,1730241053778,-500.0,0.00034273,5]
[341012695,1730241053788,-500.0,0.00034273,5]
[341012696,1730241053797,-500.0,0.00034273,5]
[341012697,1730241053807,-500.0,0.00034273,5]
[341012698,1730241053816,-1000.0,0.00034274,2]
[341012699,1730241053825,-3000.0,0.000343,30]
[341012700,1730241053834,-364.84,0.000343,30]
[341012701,1730241053843,-377.81,0.000343,30]
[341012702,1730241053852,-2420.51,0.000343,30]
[341012703,1730241053861,-1752.3,0.000343,30]
[341012704,1730241053870,-3000.0,0.0003431,30]
[341012705,1730241053881,-3000.0,0.0003432,30]
[341012706,1730241053893,-1000.0,0.00034326,2]
[341012707,1730241053904,-3000.0,0.0003433,30]
[341012708,1730241053914,-3000.0,0.0003434,30]
[341012709,1730241053923,-500.0,0.00034345,2]
[341012710,1730241053932,-3000.0,0.0003435,30]
[341012711,1730241053943,-3000.0,0.0003436,30]
[341012712,1730241053954,-3000.0,0.0003437,30]
[341012713,1730241053965,-5000.0,0.00034375,30]
[341012714,1730241053977,-3000.0,0.0003438,30]
[341012715,1730241053989,-3000.0,0.0003439,30]
[341012716,1730241053998,-1000.0,0.00034399,2]
[341012717,1730241054008,-3000.0,0.000344,30]
[341012718,1730241054017,-3000.0,0.0003441,30]
[341012719,1730241054027,-400.0,0.0003442,60]
[341012720,1730241054038,-3000.0,0.0003442,30]
[341012721,1730241054050,-3000.0,0.0003443,30]
[341012722,1730241054060,-3000.0,0.0003444,30]
[341012723,1730241054070,-4087.743645,0.0003445,30]
[341012724,1730241054079,-1000.0,0.00034488,2]
[341012725,1730241054089,-1000.0,0.00034496,2]
[341012726,1730241054098,-2000.0,0.000345,30]
[341012727,1730241054110,-1000.0,0.00034504,2]
[341012728,1730241054120,-1000.0,0.00034529,2]
[341012729,1730241054129,-1000.0,0.00034535,2]
[341012730,1730241054141,-278.09762874,0.0003454,2]
[341012731,1730241054150,-1000.0,0.0003454,2]
[341012732,1730241054159,-1000.0,0.00034556,2]
[341012733,1730241054169,-2000.0,0.000346,30]
[341012734,1730241054178,-2085.39891062,0.000346,120]
[341012735,1730241054187,-1000.0,0.0003461,2]
[341012736,1730241054197,-1000.0,0.00034625,2]
[341012737,1730241054207,-1000.0,0.00034657,2]
[341012738,1730241054217,-1000.0,0.00034697,2]
[341012739,1730241054227,-2000.0,0.000347,30]
[341012740,1730241054238,-1000.0,0.00034731,2]
[341012741,1730241054249,-1000.0,0.00034749,2]
[341012742,1730241054259,-1000.0,0.00034756,2]
[341012743,1730241054268,-1000.0,0.00034757,2]
[341012744,1730241054277,-1000.0,0.00034784,2]
[341012745,1730241054286,-999.0,0.00034794,120]
[341012746,1730241054296,-2000.0,0.000348,30]
[341012747,1730241054307,-1000.0,0.000348,3]
[341012748,1730241054317,-233.85728639,0.00034814,2]
[341012749,1730241054326,-673.096662,0.00034845,2]
[341012750,1730241054336,-1000.0,0.00034847,2]
[341012751,1730241054347,-1000.0,0.00034875,2]
[341012752,1730241054357,-475796.23257145,0.00034888,2]
[341012753,1730241054366,-151.0,0.00034888,15]
[341012754,1730241054376,-150.0,0.0003489,120]
[341012755,1730241054387,-300.0,0.000349,30]
[341012756,1730241054398,-3007.68646529,0.000349,60]
[341012757,1730241054408,-600.0,0.000349,120]
[341012758,1730241054421,-207.84,0.000349,30]
[341012759,1730241054432,-410.65790742,0.000349,30]
[341012760,1730241054443,-1369.0,0.000349,120]
[341012761,1730241054454,-3000.0,0.000349,21]
[341012762,1730241054464,-3000.0,0.0003491,21]
[341012763,1730241054473,-3000.0,0.0003492,21]
[341012764,1730241054482,-186.20697554,0.00034926,45]
[341012765,1730241054491,-3000.0,0.0003493,21]
[341012766,1730241054500,-985.81123781,0.00034936,120]
[341012767,1730241054509,-150.0,0.00034939,120]
[341012768,1730241054520,-3000.0,0.0003494,21]
[341012769,1730241054530,-2127.0,0.0003495,30]
[341012770,1730241054542,-3000.0,0.0003495,21]
[341012771,1730241054552,-500000.0,0.00034956,30]
[341012772,1730241054561,-5779.8637791,0.0003496,20]
[341012773,1730241054570,-3000.0,0.0003496,22]
[341012774,1730241054579,-3000.0,0.0003497,22]
[341012775,1730241054588,-3000.0,0.0003498,22]
[341012776,1730241054597,-5001.75,0.00034983,30]
[341012777,1730241054608,-1000.0,0.00034988,2]
[341012778,1730241054618,-3000.0,0.0003499,22]
[341012779,1730241054629,-192.05949885,0.00035,14]
[341012780,1730241054642,-180266.15860076,0.00035,5]
[341012781,1730241054651,-30616.88111758,0.00035,2]
[341012782,1730241054661,-989.45516469,0.00035,10]
[341012783,1730241054671,-10466.2907402,0.00035,2]
[341012784,1730241054681,-250.0,0.00035,120]
[341012785,1730241054690,-12000.0,0.00035,3]
[341012786,1730241054699,-490.32675949,0.00035,2]
[341012787,1730241054709,-1000.0,0.00035,120]
[341012788,1730241054719,-370.97360067,0.00035,2]
[341012789,1730241054729,-200.00000006,0.00035,30]
[341012790,1730241054737,-1000.0,0.00035,120]
[341012791,1730241054747,-550.7487752,0.00035,20]
[341012792,1730241054756,-1539.0,0.00035,120]
[341012793,1730241054765,-266.75361861,0.00035,14]
[341012794,1730241054774,-18888.64828135,0.00035,30]
[341012795,1730241054783,-154.20148751,0.00035,30]
[341012796,1730241054792,-312.09,0.00035,5]
[341012797,1730241054804,-1000.0,0.00035,2]
[341012798,1730241054816,-27655.0,0.00035,30]
[341012799,1730241054826,-1513.48884,0.00035,31]
[341012800,1730241054837,-159.0,0.00035,2]
[341012801,1730241054847,-501.0,0.00035,4]
[341012802,1730241054856,-1134.24594065,0.00035,2]
[341012803,1730241054867,-54556.0,0.00035,120]
[341012804,1730241054879,-300.0,0.00035,18]
[341012805,1730241054888,-1000.0,0.00035,2]
[341012806,1730241054998,-1000.0,0.00035,2]
[341012807,1730241055008,-1000.0,0.00035,2]
[341012808,1730241055017,-1000.0,0.00035,2]
[341012809,1730241055027,-1000.0,0.00035,2]
[341012810,1730241055036,-1000.0,0.00035,2]
[341012811,1730241055046,-1000.0,0.00035,2]
[341012812,1730241055055,-1000.0,0.00035,2]
[341012813,1730241055064,-1000.0,0.00035,2]
[341012814,1730241055075,-1018.5942,0.00035,2]
[341012815,1730241055086,-3000.0,0.00035,22]
[341012816,1730241055097,-200.0,0.00035,24]
[341012817,1730241055107,-151.0,0.00035,14]
[341012818,1730241055117,-1010.52,0.00035,30]
[341012819,1730241055128,-2460.30546378,0.00035,120]
[341012820,1730241055139,-2000.0,0.00035,3]
[341012821,1730241055150,-206.80422707,0.00035,5]
[341012822,1730241055160,-400.0,0.00035,30]
[341012823,1730241055171,-10000.0,0.00035,120]
[341012824,1730241055181,-500.0,0.00035,30]
[341012825,1730241055192,-500.0,0.00035,30]
[341012826,1730241055203,-500.0,0.00035,30]
[341012827,1730241055214,-500.0,0.00035,30]
[341012828,1730241055224,-500.0,0.00035,30]
[341012829,1730241055237,-500.0,0.00035,30]
[341012830,1730241055247,-7768.51161221,0.00035,7]
[341012831,1730241055257,-2358.70168239,0.00035,30]
[341012832,1730241055266,-260.526,0.00035,2]
[341012833,1730241055275,-2723.0,0.00035007,30]
[341012834,1730241055287,-1427.0,0.00035008,30]
[341012835,1730241055298,-3000.0,0.0003501,22]
[341012836,1730241055308,-783.0,0.00035012,2]
[341012837,1730241055319,-3000.0,0.0003502,22]
[341012838,1730241055329,-47916.87938161,0.0003503,2]
[341012839,1730241055340,-3000.0,0.0003503,22]
[341012840,1730241055351,-3000.0,0.0003504,22]
[341012841,1730241055361,-600.0,0.00035042,120]
[341012842,1730241055370,-615.14495759,0.00035043,120]
[341012843,1730241055380,-600.0,0.00035046,120]
[341012844,1730241055392,-3000.0,0.0003505,22]
[341012845,1730241055401,-1000.0,0.00035056,120]
[341012846,1730241055410,-1000.0,0.00035056,120]
[341012847,1730241055419,-1000.0,0.00035056,120]
[341012848,1730241055430,-1000.0,0.00035056,120]
[341012849,1730241055440,-1000.0,0.00035056,120]
[341012850,1730241055450,-845.735649,0.00035056,120]
[341012851,1730241055460,-200.0,0.00035056,120]
[341012852,1730241055469,-3000.0,0.0003506,22]
[341012853,1730241055479,-3000.0,0.0003507,22]
[341012854,1730241055488,-158.4661029,0.0003508,2]
[341012855,1730241055497,-3000.0,0.0003508,22]
[341012856,1730241055507,-600.52984098,0.00035088,120]
[341012857,1730241055516,-500.0,0.00035098,13]
[341012858,1730241055525,-500.0,0.00035098,13]
[341012859,1730241055534,-2875.0,0.000351,30]
[341012860,1730241055543,-613.0,0.000351,2]
[341012861,1730241055553,-1841.6348,0.000351,2]
[341012862,1730241055562,-1841.6348,0.000351,2]
[341012863,1730241055572,-277.20619308,0.00035113,30]
[341012864,1730241055581,-2500.0,0.00035132,5]
[341012865,1730241055590,-1004.20443002,0.00035184,5]
[341012866,1730241055600,-880.45781,0.000352,120]
[341012867,1730241055610,-1000.0,0.000352,3]
[341012868,1730241055619,-160.0,0.00035281,5]
[341012869,1730241055627,-150.0,0.00035282,120]
[341012870,1730241055639,-150.0,0.00035292,120]
[341012871,1730241055649,-1080.0,0.000353,30]
[341012872,1730241055658,-500.0,0.000353,30]
[341012873,1730241055668,-364.84,0.000353,30]
[341012874,1730241055678,-377.81,0.000353,30]
[341012875,1730241055689,-2420.51,0.000353,30]
[341012876,1730241055698,-150.0,0.00035372,120]
[341012877,1730241055708,-7198.71276271,0.00035388,54]
[341012878,1730241055719,-5000.0,0.00035388,52]
[341012879,1730241055730,-5000.0,0.00035388,48]
[341012880,1730241055740,-5000.0,0.00035388,48]
[341012881,1730241055749,-5000.0,0.00035388,54]
[341012882,1730241055758,-500.0,0.00035397,3]
[341012883,1730241055767,-510.0,0.00035397,3]
[341012884,1730241055776,-10000.0,0.00035398,30]
[341012885,1730241055785,-8911.0,0.00035398,30]
[341012886,1730241055794,-1372.0,0.00035398,30]
[341012887,1730241055803,-271.39434733,0.000354,30]
[341012888,1730241055813,-50000.0,0.000354,2]
[341012889,1730241055822,-1333.53336334,0.000354,7]
[341012890,1730241055831,-1752.3,0.000354,30]
[341012891,1730241055840,-500.0,0.00035411,3]
[341012892,1730241055849,-500.0,0.00035411,3]
[341012893,1730241055858,-500.0,0.00035411,3]
[341012894,1730241055870,-500.0,0.00035411,3]
[341012895,1730241055881,-500.0,0.00035411,3]
[341012896,1730241055893,-500.0,0.00035411,3]
[341012897,1730241055905,-500.0,0.00035411,3]
[341012898,1730241055915,-500.0,0.00035411,3]
[341012899,1730241055924,-752.0,0.00035411,3]
[341012900,1730241055934,-500.0,0.00035411,3]
[341012901,1730241055945,-5000.0,0.00035414,52]
[341012902,1730241055956,-500.0,0.00035418,3]
[341012903,1730241055965,-500.0,0.00035418,3]